Workbook

Sheet All. 9 - RIEPILOGO PER UGBTEP
A1: LC | B1: Anno | C1: CAPITOLO DI SPESA | D1: DETERMINA N. DEL | E1: CIG | F1: OGGETTO DEL CONTRATTO | G1: PERIODO CONTRATTUALE (DAL ...….… AL……....) | I1: IMPORTO A BASE D'ASTA | J1: AMMONTARE INCENTIVO PER SINGOLO CONTRATTO (2% -1,90%) | K1: 0.8 | L1: 0.2 | M1: quota 80% RELATIVA ALL'UFFICIO che ha predisposto l'allegato 10 (es. UUCR, SPI, … ALTRO) anno in corso | N1: quota 80% RELATIVA ALL'UFFICIO che ha predisposto l'allegato 10 (es. UUCR, SPI, … ALTRO) anno in corso | O1: Tipo incarico | P1: importo unitario liquidato | Q1: percentuale di ripartizione dell'incentivo in base al tipo di incarico svolto | R1: importo arrotondato | S1: QUOTA LIQUIDATA NEL 2019 | T1: QUOTA LIQUIDATA NEL 2020 | U1: QUOTA LIQUIDATA NEL 2021 | V1: QUOTA LIQUIDATA NEL 2022 | W1: QUOTA LIQUIDATA NEL 2023 | X1: QUOTA DA LIQUIDARE NEL 2024 | Y1: 2025 | Z1: 2026
A2: CQ | B2: 2023 | C2: 1273 | D2: 23 DEL 08-02-2023 | E2: 9635852C9C | F2: STARTWEB | G2: 2023-03-01 | H2: 2023-12-31 | I2: 18000 | J2: =+I2*0.02 -> 360 | K2: =+J2*0.8 -> 288 | L2: =+J2*0.2 -> 72 | M2: 89.28 | N2: =+R2+R3+R4+R5 -> 89.28 | O2: Inc. Pred. Doc | P2: =+K2*Q2 -> 14.4 | Q2: 0.05 | R2: =ROUND(P2,2) -> 14.4 | X2: 0
A3: CQ | B3: 2023 | C3: 1273 | D3: 23 DEL 08-02-2023 | E3: 9635852C9C | F3: STARTWEB | G3: 2023-03-01 | H3: 2023-12-31 | I3: 18000 | J3: =+I3*0.02 -> 360 | K3: =+J3*0.8 -> 288 | L3: =+J3*0.2 -> 72 | O3: Coll. Inc. Pred. Doc | P3: =+K3*Q3 -> 28.8 | Q3: 0.1 | R3: =ROUND(P3,2) -> 28.8
A4: CQ | B4: 2023 | C4: 1273 | D4: 23 DEL 08-02-2023 | E4: 9635852C9C | F4: STARTWEB | G4: 2023-03-01 | H4: 2023-12-31 | I4: 18000 | J4: =+I4*0.02 -> 360 | K4: 288 | L4: 72 | O4: RUP Affidamento | P4: =+K4*Q4 -> 28.8 | Q4: 0.1 | R4: 28.8
A5: CQ | B5: 2023 | C5: 1273 | D5: 23 DEL 08-02-2023 | E5: 9635852C9C | F5: STARTWEB | G5: 2023-03-01 | H5: 2023-12-31 | I5: 18000 | J5: =+I5*0.02 -> 360 | K5: 288 | L5: 72 | O5: Coll RUP Aff. | P5: =+K5*Q5 -> 17.28 | Q5: 0.06 | R5: 17.28
A6: MT | B6: 2022 | C6: 1273 | D6: 210 del 16-12-2022 | E6: Z8C3923A4A | F6: FORNITURA DI UNA SOLUZIONE TECNOLOGICA MFA FORTINET E DEI SERVIZI DI INSTALLAZIONE | G6: 2023-01-19 | H6: 2026-01-18 | I6: 39834.28 | J6: =+I6*0.02 -> 796.69 | K6: 637.35 | L6: 159.34 | M6: 197.58 | N6: =+R6+R7+R8+R9+R10 -> 197.59 | O6: Inc. Pred. Doc | P6: =+K6*Q6 -> 31.87 | Q6: 0.05 | R6: =ROUND(P6,2) -> 31.87 | X6: 0
A7: MT | B7: 2022 | C7: 1273 | D7: 210 del 16-12-2022 | E7: Z8C3923A4A | F7: FORNITURA DI UNA SOLUZIONE TECNOLOGICA MFA FORTINET E DEI SERVIZI DI INSTALLAZIONE | G7: 2023-01-19 | H7: 2026-01-18 | I7: 39834.28 | J7: 796.69 | K7: 637.35 | L7: =+J7*0.2 -> 159.34 | O7: Coll. Inc. Pred. Doc | P7: =+K7*Q7 -> 41.43 | Q7: 0.065 | R7: =ROUND(P7,2) -> 41.43
A8: MT | B8: 2022 | C8: 1273 | D8: 210 del 16-12-2022 | E8: Z8C3923A4A | F8: FORNITURA DI UNA SOLUZIONE TECNOLOGICA MFA FORTINET E DEI SERVIZI DI INSTALLAZIONE | G8: 2023-01-19 | H8: 2026-01-18 | I8: 39834.28 | J8: 796.69 | K8: 637.35 | L8: 159.34 | O8: Coll. Inc. Pred. Doc | P8: =+K8*Q8 -> 22.31 | Q8: 0.035 | R8: 22.31
A9: MT | B9: 2022 | C9: 1273 | D9: 210 del 16-12-2022 | E9: Z8C3923A4A | F9: FORNITURA DI UNA SOLUZIONE TECNOLOGICA MFA FORTINET E DEI SERVIZI DI INSTALLAZIONE | G9: 2023-01-19 | H9: 2026-01-18 | I9: 39834.28 | J9: 796.69 | K9: 637.35 | L9: 159.34 | O9: RUP Affidamento | P9: =+K9*Q9 -> 63.74 | Q9: 0.1 | R9: 63.74
A10: MT | B10: 2022 | C10: 1273 | D10: 210 del 16-12-2022 | E10: Z8C3923A4A | F10: FORNITURA DI UNA SOLUZIONE TECNOLOGICA MFA FORTINET E DEI SERVIZI DI INSTALLAZIONE | G10: 2023-01-19 | H10: 2026-01-18 | I10: 39834.28 | J10: 796.69 | K10: 637.35 | L10: 159.34 | O10: Coll RUP Aff. | P10: =+K10*Q10 -> 38.24 | Q10: 0.06 | R10: 38.24
A11: MT | B11: 2023 | C11: 1273 | D11: 30 DEL 16-02-2023 | E11: Z1E39FCCD6 | F11: servizio di consulenza professionale Adobe per 12 mesi | G11: 2023-03-08 | H11: 2024-03-07 | I11: 17863.72 | J11: 357.27 | K11: 285.82 | L11: 71.45 | M11: =+R11+R12+R13+R14 -> 40.01 | N11: =+P11+P12+P13+P14 -> 40.01 | O11: Inc. Pred. Doc | P11: =+K11*Q11 -> 5.72 | Q11: 0.02 | R11: =ROUND(P11,2) -> 5.72 | X11: 0
A12: MT | B12: 2023 | C12: 1273 | D12: 30 DEL 16-02-2023 | E12: Z1E39FCCD6 | F12: servizio di consulenza professionale Adobe per 12 mesi | G12: 2023-03-08 | H12: 2024-03-07 | I12: 17863.72 | J12: =+I12*0.02 -> 357.27 | K12: =+J12*0.8 -> 285.82 | L12: =+J12*0.2 -> 71.45 | O12: Coll. Inc. Pred. Doc | P12: 2.85 | Q12: 0.01 | R12: 2.85
A13: MT | B13: 2023 | C13: 1273 | D13: 30 DEL 16-02-2023 | E13: Z1E39FCCD6 | F13: servizio di consulenza professionale Adobe per 12 mesi | G13: 2023-03-08 | H13: 2024-03-07 | I13: 17863.72 | J13: 357.27 | K13: 285.82 | L13: 71.45 | O13: RUP Affidamento | P13: =+K13*Q13 -> 22.87 | Q13: 0.08 | R13: 22.87
A14: MT | B14: 2023 | C14: 1273 | D14: 30 DEL 16-02-2023 | E14: Z1E39FCCD6 | F14: servizio di consulenza professionale Adobe per 12 mesi | G14: 2023-03-08 | H14: 2024-03-07 | I14: 17863.72 | J14: 357.27 | K14: 285.82 | L14: 71.45 | O14: Coll RUP Aff. | P14: =+K14*Q14 -> 8.57 | Q14: 0.03 | R14: =ROUND(P14,2) -> 8.57
A15: MT | B15: 2023 | C15: 1273 | D15: 34 del 27-02-2023 | E15: 9678082DE8 | F15: Liferay DXP (versione7.3) per ventiquattro mesi, | G15: 24 mesi dalla stipula del contratto | I15: 195900 | J15: 3918 | K15: 3134.4 | L15: 783.6 | M15: =+R15+R16+R17+R18+R19 -> 971.66 | N15: =+R15+R16+R17+R18+R19 -> 971.66 | O15: Inc. Pred. Doc | P15: =+K15*Q15 -> 156.72 | Q15: 0.05 | R15: =ROUND(P15,2) -> 156.72 | X15: 0
A16: MT | B16: 2023 | C16: 1273 | D16: 34 del 27-02-2023 | E16: 9678082DE8 | F16: Liferay DXP (versione7.3) per ventiquattro mesi, | G16: 24 mesi dalla stipula del contratto | I16: 195900 | J16: 3918 | K16: 3134.4 | L16: 783.6 | O16: Coll. Inc. Pred. Doc | P16: =+K16*Q16 -> 203.74 | Q16: 0.065 | R16: =ROUND(P16,2) -> 203.74
A17: MT | B17: 2023 | C17: 1273 | D17: 34 del 27-02-2023 | E17: 9678082DE8 | F17: Liferay DXP (versione7.3) per ventiquattro mesi, | G17: 24 mesi dalla stipula del contratto | I17: 195900 | J17: 3918 | K17: 3134.4 | L17: 783.6 | O17: Coll. Inc. Pred. Doc | P17: =+K17*Q17 -> 109.7 | Q17: 0.035 | R17: 109.7
A18: MT | B18: 2023 | C18: 1273 | D18: 34 del 27-02-2023 | E18: 9678082DE8 | F18: Liferay DXP (versione7.3) per ventiquattro mesi, | G18: 24 mesi dalla stipula del contratto | I18: 195900 | J18: 3918 | K18: 3134.4 | L18: 783.6 | O18: RUP Affidamento | P18: =+K18*Q18 -> 313.44 | Q18: 0.1 | R18: 313.44
A19: MT | B19: 2023 | C19: 1273 | D19: 34 del 27-02-2023 | E19: 9678082DE8 | F19: Liferay DXP (versione7.3) per ventiquattro mesi, | G19: 24 mesi dalla stipula del contratto | I19: 195900 | J19: 3918 | K19: 3134.4 | L19: 783.6 | O19: Coll RUP Aff. | P19: =+K19*Q19 -> 188.06 | Q19: 0.06 | R19: 188.06
A20: PC | B20: 2023 | C20: 1273 | D20: 21 DEL 31-01-2023 | E20: 9631100B23 | F20: Servizio di consultazione di durata biennale di banche dati giuridiche on line“ My Desk 24 + quotidiano digitale il Sole 24 Ore | G20: 2023-03-16 | H20: 2025-03-15 | I20: 298000 | J20: =+I20*1.9/100 -> 5662 | K20: 4529.6 | L20: 1132.4 | M20: =+R20+R21+R22+R23+R24 -> 0 | N20: =+P20+P21+P22+P24+P23 -> 1404.18 | O20: Inc. Pred. Doc | P20: =+K20*Q20 -> 226.48 | Q20: 0.05 | X20: 0
A21: PC | B21: 2023 | C21: 1273 | D21: 21 DEL 31-01-2023 | E21: 9631100B23 | F21: Servizio di consultazione di durata biennale di banche dati giuridiche on line“ My Desk 24 + quotidiano digitale il Sole 24 Ore | G21: 2023-03-16 | H21: 2025-03-15 | I21: 298000 | J21: =+I21*1.9/100 -> 5662 | K21: =+J21*0.8 -> 4529.6 | L21: =+J21*0.2 -> 1132.4 | O21: Coll. Inc. Pred. Doc | P21: =+K21*Q21 -> 294.42 | Q21: 0.065
A22: PC | B22: 2023 | C22: 1273 | D22: 21 DEL 31-01-2023 | E22: 9631100B23 | F22: Servizio di consultazione di durata biennale di banche dati giuridiche on line“ My Desk 24 + quotidiano digitale il Sole 24 Ore | G22: 2023-03-16 | H22: 2025-03-15 | I22: 298000 | J22: 5662 | K22: 4529.6 | L22: 1132.4 | O22: Coll. Inc. Pred. Doc | P22: =+K22*Q22 -> 158.54 | Q22: 0.035
A23: PC | B23: 2023 | C23: 1273 | D23: 21 DEL 31-01-2023 | E23: 9631100B23 | F23: Servizio di consultazione di durata biennale di banche dati giuridiche on line“ My Desk 24 + quotidiano digitale il Sole 24 Ore | G23: 2023-03-16 | H23: 2025-03-15 | I23: 298000 | J23: 5662 | K23: =+J23*0.8 -> 4529.6 | L23: =+J23*0.2 -> 1132.4 | O23: RUP Affidamento | P23: =+K23*Q23 -> 452.96 | Q23: 0.1
A24: PC | B24: 2023 | C24: 1273 | D24: 21 DEL 31-01-2023 | E24: 9631100B23 | F24: Servizio di consultazione di durata biennale di banche dati giuridiche on line“ My Desk 24 + quotidiano digitale il Sole 24 Ore | G24: 2023-03-16 | H24: 2025-03-15 | I24: 298000 | J24: 5662 | K24: 4529.6 | L24: 1132.4 | O24: Coll RUP Aff. | P24: =+K24*Q24 -> 271.78 | Q24: 0.06
A25: PC | B25: 2022 | C25: 1273 | D25: 202 del 12-12-2022 | E25: 953213242B | F25: consultazione della banca dati giuridica Lexitalia | G25: 2023-01-31 | H25: 2024-01-30 | I25: 125000 | J25: =+I25*2/100 -> 2500 | K25: 2000 | L25: 500 | M25: =+R25+R26+R27+R28+R29 -> 0 | N25: =+P25+P27+P28+P29+P26 -> 620 | O25: Inc. Pred. Doc | P25: =+K25*Q25 -> 100 | Q25: 0.05 | X25: 0
A26: PC | B26: 2022 | C26: 1273 | D26: 202 del 12-12-2022 | E26: 953213242B | F26: consultazione della banca dati giuridica Lexitalia | G26: 2023-01-31 | H26: 2024-01-30 | I26: 125000 | J26: =+I26*2/100 -> 2500 | K26: =+J26*0.8 -> 2000 | L26: =+J26*0.2 -> 500 | O26: Coll. Inc. Pred. Doc | P26: =+K26*Q26 -> 130 | Q26: 0.065
A27: PC | B27: 2022 | C27: 1273 | D27: 202 del 12-12-2022 | E27: 953213242B | F27: consultazione della banca dati giuridica Lexitalia | G27: 2023-01-31 | H27: 2024-01-30 | I27: 125000 | J27: 2500 | K27: 2000 | L27: 500 | O27: Coll. Inc. Pred. Doc | P27: =+K27*Q27 -> 70 | Q27: 0.035
A28: PC | B28: 2022 | C28: 1273 | D28: 202 del 12-12-2022 | E28: 953213242B | F28: consultazione della banca dati giuridica Lexitalia | G28: 2023-01-31 | H28: 2024-01-30 | I28: 125000 | J28: 2500 | K28: 2000 | L28: 500 | O28: RUP Affidamento | P28: =+K28*Q28 -> 200 | Q28: 0.1
A29: PC | B29: 2022 | C29: 1273 | D29: 202 del 12-12-2022 | E29: 953213242B | F29: consultazione della banca dati giuridica Lexitalia | G29: 2023-01-31 | H29: 2024-01-30 | I29: 125000 | J29: 2500 | K29: 2000 | L29: 500 | O29: Coll RUP Aff. | P29: =+K29*Q29 -> 120 | Q29: 0.06
A30: LC | B30: 2023 | C30: 1273 | D30: DETERMINA N. n. 29 del 14/02/2023 | E30: 9653321C7C | F30: Azure Monetary Commit | G30: 2023-03-01 | H30: 2023-06-30 | I30: 499908.24 | J30: =+I30*1.9% -> 9498.26 | K30: =+J30*0.8 -> 7598.61 | L30: =+J30*0.2 -> 1899.65 | M30: 2355.57 | N30: =+P30+P31+P32+P33+P34 -> 2355.57 | O30: Inc. Pred. Doc | P30: =+K30*Q30 -> 379.93 | Q30: 0.05 | R30: =ROUND(P30,2) -> 379.93 | X30: 0
A31: LC | B31: 2023 | C31: 1273 | D31: DETERMINA N. n. 29 del 14/02/2023 | E31: 9653321C7C | F31: Azure Monetary Commit | G31: 2023-03-01 | H31: 2023-06-30 | I31: 499908.24 | J31: =+I31*1.9% -> 9498.26 | K31: =+J31*0.8 -> 7598.61 | L31: =+J31*0.2 -> 1899.65 | O31: Coll. Inc. Pred. Doc | P31: =+K31*Q31 -> 493.91 | Q31: 0.065 | R31: =ROUND(P31,2) -> 493.91
A32: LC | B32: 2023 | C32: 1273 | D32: DETERMINA N. n. 29 del 14/02/2023 | E32: 9653321C7C | F32: Azure Monetary Commit | G32: 2023-03-01 | H32: 2023-06-30 | I32: 499908.24 | J32: 9498.26 | K32: 7598.61 | L32: 1899.65 | O32: Coll. Inc. Pred. Doc | P32: =+K32*Q32 -> 265.95 | Q32: 0.035 | R32: 265.95
A33: LC | B33: 2023 | C33: 1273 | D33: DETERMINA N. n. 29 del 14/02/2023 | E33: 9653321C7C | F33: Azure Monetary Commit | G33: 2023-03-01 | H33: 2023-06-30 | I33: 499908.24 | J33: 9498.26 | K33: 7598.61 | L33: 1899.65 | O33: RUP Affidamento | P33: =+K33*Q33 -> 759.86 | Q33: 0.1 | R33: 759.86
A34: LC | B34: 2023 | C34: 1273 | D34: DETERMINA N. n. 29 del 14/02/2023 | E34: 9653321C7C | F34: Azure Monetary Commit | G34: 2023-03-01 | H34: 2023-06-30 | I34: 499908.24 | J34: 9498.26 | K34: 7598.61 | L34: 1899.65 | O34: Coll RUP Aff. | P34: =+K34*Q34 -> 455.92 | Q34: 0.06 | R34: 455.92
A35: LC | B35: 2023 | C35: 1273 | D35: DETERMINA N. n. 28 del 13/02/2023 | E35: 9653292490 | F35: Soluzione Alfresco | G35: 16 mesi dal verbale di avvio | I35: 192800 | J35: =+I35*2% -> 3856 | K35: =+J35*0.8 -> 3084.8 | L35: =+J35*0.2 -> 771.2 | M35: =+R35+R36+R37+R38+R39 -> 956.29 | N35: =+P35+P36+P37+P38+P39 -> 956.29 | O35: Inc. Pred. Doc | P35: =+K35*Q35 -> 154.24 | Q35: 0.05 | R35: =ROUND(P35,2) -> 154.24 | X35: 0
A36: LC | B36: 2023 | C36: 1273 | D36: DETERMINA N. n. 28 del 13/02/2023 | E36: 9653292490 | F36: Soluzione Alfresco | G36: 16 mesi dal verbale di avvio | I36: 192800 | J36: 3856 | K36: =+J36*0.8 -> 3084.8 | L36: =+J36*0.2 -> 771.2 | O36: Coll. Inc. Pred. Doc | P36: =+K36*Q36 -> 200.51 | Q36: 0.065 | R36: =ROUND(P36,2) -> 200.51
A37: LC | B37: 2023 | C37: 1273 | D37: DETERMINA N. n. 28 del 13/02/2023 | E37: 9653292490 | F37: Soluzione Alfresco | G37: 16 mesi dal verbale di avvio | I37: 192800 | J37: 3856 | K37: 3084.8 | L37: 771.2 | O37: Coll. Inc. Pred. Doc | P37: =+K37*Q37 -> 107.97 | Q37: 0.035 | R37: 107.97
A38: LC | B38: 2023 | C38: 1273 | D38: DETERMINA N. n. 28 del 13/02/2023 | E38: 9653292490 | F38: Soluzione Alfresco | G38: 16 mesi dal verbale di avvio | I38: 192800 | J38: 3856 | K38: 3084.8 | L38: 771.2 | O38: RUP Affidamento | P38: =+K38*Q38 -> 308.48 | Q38: 0.1 | R38: 308.48
A39: LC | B39: 2023 | C39: 1273 | D39: DETERMINA N. n. 28 del 13/02/2023 | E39: 9653292490 | F39: Soluzione Alfresco | G39: 16 mesi dal verbale di avvio | I39: 192800 | J39: 3856 | K39: 3084.8 | L39: 771.2 | O39: Coll RUP Aff. | P39: =+K39*Q39 -> 185.09 | Q39: 0.06 | R39: 185.09
A40: V | B40: 2023 | C40: 4250 | D40: DETERMINA N. n. 5 del 12/01/2023 | E40: 959762310E | F40: dispositivi attivi per le reti LAN | G40: 2023-03-22 | H40: 2026-03-21 | I40: 137800 | J40: 2756 | K40: =+J40*0.8 -> 2204.8 | L40: =+J40*0.2 -> 551.2 | M40: =+R40+R41+R42+R43+R44 -> 683.49 | N40: =+P40+P41+P42+P43+P44 -> 683.49 | O40: Inc. Pred. Doc | P40: =+K40*Q40 -> 110.24 | Q40: 0.05 | R40: =ROUND(P40,2) -> 110.24 | X40: 0
A41: V | B41: 2023 | C41: 4250 | D41: DETERMINA N. n. 5 del 12/01/2023 | E41: 959762310E | F41: dispositivi attivi per le reti LAN | G41: 2023-03-22 | H41: 2026-03-21 | I41: 137800 | J41: 2756 | K41: =+J41*0.8 -> 2204.8 | L41: =+J41*0.2 -> 551.2 | O41: Coll. Inc. Pred. Doc | P41: =+K41*Q41 -> 143.31 | Q41: 0.065 | R41: =ROUND(P41,2) -> 143.31
A42: V | B42: 2023 | C42: 4250 | D42: DETERMINA N. n. 5 del 12/01/2023 | E42: 959762310E | F42: dispositivi attivi per le reti LAN | G42: 2023-03-22 | H42: 2026-03-21 | I42: 137800 | J42: 2756 | K42: 2204.8 | L42: 551.2 | O42: Coll. Inc. Pred. Doc | P42: =+K42*Q42 -> 77.17 | Q42: 0.035 | R42: 77.17
A43: V | B43: 2023 | C43: 4250 | D43: DETERMINA N. n. 5 del 12/01/2023 | E43: 959762310E | F43: dispositivi attivi per le reti LAN | G43: 2023-03-22 | H43: 2026-03-21 | I43: 137800 | J43: 2756 | K43: 2204.8 | L43: 551.2 | O43: RUP Affidamento | P43: =+K43*Q43 -> 220.48 | Q43: 0.1 | R43: 220.48
A44: V | B44: 2023 | C44: 4250 | D44: DETERMINA N. n. 5 del 12/01/2023 | E44: 959762310E | F44: dispositivi attivi per le reti LAN | G44: 2023-03-22 | H44: 2026-03-21 | I44: 137800 | J44: 2756 | K44: 2204.8 | L44: 551.2 | O44: Coll RUP Aff. | P44: =+K44*Q44 -> 132.29 | Q44: 0.06 | R44: 132.29
A45: PC | B45: 2023 | C45: 1273 | D45: 52 DEL 29-03-2023 | E45: Z473A94DA5 | F45: Facile consumo | G45: 2023-05-10 | H45: 2023-05-20 | I45: 24000 | J45: =+I45*0.02 -> 480 | K45: 384 | L45: 96 | M45: =+R45+R46+R47+R48 -> 0 | N45: =+P45+P46+P47+P48 -> 119.04 | O45: Inc. Pred. Doc | P45: =+K45*Q45 -> 19.2 | Q45: 0.05 | X45: 0
A46: PC | B46: 2023 | C46: 1273 | D46: 52 DEL 29-03-2023 | E46: Z473A94DA5 | F46: Facile consumo | G46: 2023-05-10 | H46: 2023-05-20 | I46: 24000 | J46: 480 | K46: 384 | L46: 96 | O46: Coll. Inc. Pred. Doc | P46: =+K46*Q46 -> 38.4 | Q46: 0.1
A47: PC | B47: 2023 | C47: 1273 | D47: 52 DEL 29-03-2023 | E47: Z473A94DA5 | F47: Facile consumo | G47: 2023-05-10 | H47: 2023-05-20 | I47: 24000 | J47: 480 | K47: 384 | L47: 96 | O47: RUP Affidamento | P47: =+K47*Q47 -> 38.4 | Q47: 0.1
A48: PC | B48: 2023 | C48: 1273 | D48: 52 DEL 29-03-2023 | E48: Z473A94DA5 | F48: Facile consumo | G48: 2023-05-10 | H48: 2023-05-20 | I48: 24000 | J48: 480 | K48: 384 | L48: 96 | O48: Coll RUP Aff. | P48: =+K48*Q48 -> 23.04 | Q48: 0.06
A49: ML | B49: 2023 | C49: 1273 | D49: 59 DEL 12-04-2023 | E49: Z813ABF50E | F49: acquisto di materiale informatico | G49: 2023-02-01 | H49: 2024-02-01 | I49: 13000 | J49: =+I49*0.02 -> 260 | K49: =+J49*0.8 -> 208 | L49: =+J49*0.2 -> 52 | M49: =+R49+R50+R51+R52 -> 64.48 | N49: =+P49+P50+P51+P52 -> 64.48 | O49: Inc. Pred. Doc | P49: =+K49*Q49 -> 10.4 | Q49: 0.05 | R49: =ROUND(P49,2) -> 10.4 | X49: 0
A50: ML | B50: 2023 | C50: 1273 | D50: 59 DEL 12-04-2023 | E50: Z813ABF50E | F50: acquisto di materiale informatico | G50: 2023-02-01 | H50: 2024-02-01 | I50: 13000 | J50: 260 | K50: 208 | L50: 52 | O50: Coll. Inc. Pred. Doc | P50: =+K50*Q50 -> 20.8 | Q50: 0.1 | R50: =ROUND(P50,2) -> 20.8
A51: ML | B51: 2023 | C51: 1273 | D51: 59 DEL 12-04-2023 | E51: Z813ABF50E | F51: acquisto di materiale informatico | G51: 2023-02-01 | H51: 2024-02-01 | I51: 13000 | J51: 260 | K51: 208 | L51: 52 | O51: RUP Affidamento | P51: =+K51*Q51 -> 20.8 | Q51: 0.1 | R51: =ROUND(P51,2) -> 20.8
A52: ML | B52: 2023 | C52: 1273 | D52: 59 DEL 12-04-2023 | E52: Z813ABF50E | F52: acquisto di materiale informatico | G52: 2023-02-01 | H52: 2024-02-01 | I52: 13000 | J52: 260 | K52: 208 | L52: 52 | O52: Coll RUP Aff. | P52: =+K52*Q52 -> 12.48 | Q52: 0.06 | R52: =ROUND(P52,2) -> 12.48
A53: ML | B53: 2023 | C53: 1273 | D53: 25 DEL 08-02-2023 | E53: 9647144313 | F53: Acquisizione licenze Qlik e supporto specialistico | G53: 2023-02-01 | H53: 2024-02-01 | I53: 137984.4 | J53: =+I53*0.02 -> 2759.69 | K53: =+J53*0.8 -> 2207.75 | L53: =+J53*0.2 -> 551.94 | M53: 684.4 | N53: =+R53+R54+R55+R56+R57 -> 684.4 | O53: Inc. Pred. Doc | P53: =+K53*Q53 -> 110.39 | Q53: 0.05 | R53: =ROUND(P53,2) -> 110.39 | X53: 0
A54: ML | B54: 2023 | C54: 1273 | D54: 25 DEL 08-02-2023 | E54: 9647144313 | F54: Acquisizione licenze Qlik e supporto specialistico | G54: 2023-02-01 | H54: 2024-02-01 | I54: 137984.4 | J54: =+I54*0.02 -> 2759.69 | K54: =+J54*0.8 -> 2207.75 | L54: =+J54*0.2 -> 551.94 | O54: Coll. Inc. Pred. Doc | P54: =+K54*Q54 -> 143.5 | Q54: 0.065 | R54: =ROUND(P54,2) -> 143.5
A55: ML | B55: 2023 | C55: 1273 | D55: 25 DEL 08-02-2023 | E55: 9647144313 | F55: Acquisizione licenze Qlik e supporto specialistico | G55: 2023-02-01 | H55: 2024-02-01 | I55: 137984.4 | J55: 2759.69 | K55: 2207.75 | L55: 551.94 | O55: Coll. Inc. Pred. Doc | P55: 77.26 | Q55: 0.035 | R55: 77.26
A56: ML | B56: 2023 | C56: 1273 | D56: 25 DEL 08-02-2023 | E56: 9647144313 | F56: Acquisizione licenze Qlik e supporto specialistico | G56: 2023-02-01 | H56: 2024-02-01 | I56: 137984.4 | J56: 2759.69 | K56: 2207.75 | L56: 551.94 | O56: RUP Affidamento | P56: =+K56*Q56 -> 220.78 | Q56: 0.1 | R56: 220.78
A57: ML | B57: 2023 | C57: 1273 | D57: 25 DEL 08-02-2023 | E57: 9647144313 | F57: Acquisizione licenze Qlik e supporto specialistico | G57: 2023-02-01 | H57: 2024-02-01 | I57: 137984.4 | J57: 2759.69 | K57: 2207.75 | L57: 551.94 | O57: Coll RUP Aff. | P57: 132.47 | Q57: 0.06 | R57: 132.47
A58: ML | B58: 2023 | C58: 1273 | D58: 32 DEL 23-02-2023 | E58: ZC03A13C0E | F58: “Supporto Solr Enterprise” | G58: 2023-02-01 | H58: 2024-02-01 | I58: 25000 | J58: 500 | K58: 400 | L58: 100 | M58: 124 | N58: =+P58+P59+P60+P61 -> 124 | O58: Inc. Pred. Doc | P58: =+K58*Q58 -> 20 | Q58: 0.05 | R58: =ROUND(P58,2) -> 20 | X58: 0
A59: ML | B59: 2023 | C59: 1273 | D59: 32 DEL 23-02-2023 | E59: ZC03A13C0E | F59: “Supporto Solr Enterprise” | G59: 2023-02-01 | H59: 2024-02-01 | I59: 25000 | J59: =+I59*0.02 -> 500 | K59: =+J59*0.8 -> 400 | L59: =+J59*0.2 -> 100 | O59: Coll. Inc. Pred. Doc | P59: =+K59*Q59 -> 40 | Q59: 0.1 | R59: =ROUND(P59,2) -> 40
A60: ML | B60: 2023 | C60: 1273 | D60: 32 DEL 23-02-2023 | E60: ZC03A13C0E | F60: “Supporto Solr Enterprise” | G60: 2023-02-01 | H60: 2024-02-01 | I60: 25000 | J60: 500 | K60: 400 | L60: 100 | O60: RUP Affidamento | P60: =+K60*Q60 -> 40 | Q60: 0.1 | R60: =ROUND(P60,2) -> 40
A61: ML | B61: 2023 | C61: 1273 | D61: 32 DEL 23-02-2023 | E61: ZC03A13C0E | F61: “Supporto Solr Enterprise” | G61: 2023-02-01 | H61: 2024-02-01 | I61: 25000 | J61: 500 | K61: 400 | L61: 100 | O61: Coll RUP Aff. | P61: =+K61*Q61 -> 24 | Q61: 0.06 | R61: =ROUND(P61,2) -> 24
A62: MC | B62: 2023 | C62: 1273 | D62: 49 DEL 22-03-2023 | E62: 9725664FD0 | F62: affidamento di servizi applicativi in ottica cloud | G62: 2023-06-30 | H62: 2028-06-29 | I62: 29275823 | J62: =+I62*1.9/100 -> 556240.64 | K62: 444992.51 | L62: 111248.13 | M62: =SUM(R62:R107) -> 62298.95 | N62: =+P62+P63+P64+P65+P66+P67+P68+P69+P70+P71+P72+P73+P74+P75+P76+P77+P78+P79+P80+P81+P82+P83+P84+P85+P86+P87+P88+P89+P91+P90+P92+P93+P94+P95+P96+P97+P98+P99+P100+P101+P102+P103+P104+P105+P106+P107 -> 62298.95 | O62: Inc. Pred. Doc | P62: 809.08 | Q62: 0.0018 | R62: =ROUND(P62,2) -> 809.08 | X62: 0
A63: MC | B63: 2023 | C63: 1273 | D63: 49 DEL 22-03-2023 | E63: 9725664FD0 | F63: affidamento di servizi applicativi in ottica cloud | I63: 29275823 | J63: =+I63*1.9/100 -> 556240.64 | K63: =+J63*0.8 -> 444992.51 | L63: =+J63*0.2 -> 111248.13 | O63: Inc. Pred. Doc | P63: 809.08 | Q63: 0.0018 | R63: =ROUND(P63,2) -> 809.08
A64: MC | B64: 2023 | C64: 1273 | D64: 49 DEL 22-03-2023 | E64: 9725664FD0 | F64: affidamento di servizi applicativi in ottica cloud | I64: 29275823 | J64: 556240.64 | K64: 444992.51 | L64: 111248.13 | O64: Inc. Pred. Doc | P64: 809.08 | Q64: 0.0018 | R64: 809.08
A65: MC | B65: 2023 | C65: 1273 | D65: 49 DEL 22-03-2023 | E65: 9725664FD0 | F65: affidamento di servizi applicativi in ottica cloud | I65: 29275823 | J65: 556240.64 | K65: 444992.51 | L65: 111248.13 | O65: Inc. Pred. Doc | P65: 809.08 | Q65: 0.0018 | R65: 809.08
A66: MC | B66: 2023 | C66: 1273 | D66: 49 DEL 22-03-2023 | E66: 9725664FD0 | F66: affidamento di servizi applicativi in ottica cloud | I66: 29275823 | J66: 556240.64 | K66: 444992.51 | L66: 111248.13 | O66: Inc. Pred. Doc | P66: 809.08 | Q66: 0.0018 | R66: 809.08
A67: MC | B67: 2023 | C67: 1273 | D67: 49 DEL 22-03-2023 | E67: 9725664FD0 | F67: affidamento di servizi applicativi in ottica cloud | I67: 29275823 | J67: 556240.64 | K67: 444992.51 | L67: 111248.13 | O67: Inc. Pred. Doc | P67: 809.08 | Q67: 0.0018 | R67: 809.08
A68: MC | B68: 2023 | C68: 1273 | D68: 49 DEL 22-03-2023 | E68: 9725664FD0 | F68: affidamento di servizi applicativi in ottica cloud | I68: 29275823 | J68: 556240.64 | K68: 444992.51 | L68: 111248.13 | O68: Inc. Pred. Doc | P68: 809.08 | Q68: 0.0018 | R68: 809.08
A69: MC | B69: 2023 | C69: 1273 | D69: 49 DEL 22-03-2023 | E69: 9725664FD0 | F69: affidamento di servizi applicativi in ottica cloud | I69: 29275823 | J69: 556240.64 | K69: 444992.51 | L69: 111248.13 | O69: Inc. Pred. Doc | P69: 809.08 | Q69: 0.0018 | R69: 809.08
A70: MC | B70: 2023 | C70: 1273 | D70: 49 DEL 22-03-2023 | E70: 9725664FD0 | F70: affidamento di servizi applicativi in ottica cloud | I70: 29275823 | J70: 556240.64 | K70: 444992.51 | L70: 111248.13 | O70: Inc. Pred. Doc | P70: 809.08 | Q70: 0.0018 | R70: 809.08
A71: MC | B71: 2023 | C71: 1273 | D71: 49 DEL 22-03-2023 | E71: 9725664FD0 | F71: affidamento di servizi applicativi in ottica cloud | I71: 29275823 | J71: 556240.64 | K71: 444992.51 | L71: 111248.13 | O71: Inc. Pred. Doc | P71: 809.08 | Q71: 0.0018 | R71: 809.08
A72: MC | B72: 2023 | C72: 1273 | D72: 49 DEL 22-03-2023 | E72: 9725664FD0 | F72: affidamento di servizi applicativi in ottica cloud | I72: 29275823 | J72: 556240.64 | K72: 444992.51 | L72: 111248.13 | O72: Inc. Pred. Doc | P72: 809.08 | Q72: 0.0018 | R72: 809.08
A73: MC | B73: 2023 | C73: 1273 | D73: 49 DEL 22-03-2023 | E73: 9725664FD0 | F73: affidamento di servizi applicativi in ottica cloud | I73: 29275823 | J73: 556240.64 | K73: 444992.51 | L73: 111248.13 | O73: Coll. Inc. Pred. Doc | P73: 1112.47 | Q73: 0.0025 | R73: 1112.47
A74: MC | B74: 2023 | C74: 1273 | D74: 49 DEL 22-03-2023 | E74: 9725664FD0 | F74: affidamento di servizi applicativi in ottica cloud | I74: 29275823 | J74: 556240.64 | K74: 444992.51 | L74: 111248.13 | O74: Coll. Inc. Pred. Doc | P74: 1112.47 | Q74: 0.0025 | R74: 1112.47
A75: MC | B75: 2023 | C75: 1273 | D75: 49 DEL 22-03-2023 | E75: 9725664FD0 | F75: affidamento di servizi applicativi in ottica cloud | I75: 29275823 | J75: 556240.64 | K75: 444992.51 | L75: 111248.13 | O75: Coll. Inc. Pred. Doc | P75: 1112.47 | Q75: 0.0025 | R75: 1112.47
A76: MC | B76: 2023 | C76: 1273 | D76: 49 DEL 22-03-2023 | E76: 9725664FD0 | F76: affidamento di servizi applicativi in ottica cloud | I76: 29275823 | J76: 556240.64 | K76: 444992.51 | L76: 111248.13 | O76: Coll. Inc. Pred. Doc | P76: 1112.47 | Q76: 0.0025 | R76: 1112.47
A77: MC | B77: 2023 | C77: 1273 | D77: 49 DEL 22-03-2023 | E77: 9725664FD0 | F77: affidamento di servizi applicativi in ottica cloud | I77: 29275823 | J77: 556240.64 | K77: 444992.51 | L77: 111248.13 | O77: RUP Affidamento | P77: 0 | Q77: 0.08 | R77: 0
A78: MC | B78: 2023 | C78: 1273 | D78: 49 DEL 22-03-2023 | E78: 9725664FD0 | F78: affidamento di servizi applicativi in ottica cloud | I78: 29275823 | J78: 556240.64 | K78: 444992.51 | L78: 111248.13 | O78: Suddivisione quota RUP | P78: 2454.2 | Q78: 0.0055 | R78: 2454.2
A79: MC | B79: 2023 | C79: 1273 | D79: 49 DEL 22-03-2023 | E79: 9725664FD0 | F79: affidamento di servizi applicativi in ottica cloud | I79: 29275823 | J79: 556240.64 | K79: 444992.51 | L79: 111248.13 | O79: Suddivisione quota RUP | P79: 2454.2 | Q79: 0.0055 | R79: 2454.2
A80: MC | B80: 2023 | C80: 1273 | D80: 49 DEL 22-03-2023 | E80: 9725664FD0 | F80: affidamento di servizi applicativi in ottica cloud | I80: 29275823 | J80: 556240.64 | K80: 444992.51 | L80: 111248.13 | O80: Suddivisione quota RUP | P80: 2454.2 | Q80: 0.0055 | R80: 2454.2
A81: MC | B81: 2023 | C81: 1273 | D81: 49 DEL 22-03-2023 | E81: 9725664FD0 | F81: affidamento di servizi applicativi in ottica cloud | I81: 29275823 | J81: 556240.64 | K81: 444992.51 | L81: 111248.13 | O81: Suddivisione quota RUP | P81: 2454.2 | Q81: 0.0055 | R81: 2454.2
A82: MC | B82: 2023 | C82: 1273 | D82: 49 DEL 22-03-2023 | E82: 9725664FD0 | F82: affidamento di servizi applicativi in ottica cloud | I82: 29275823 | J82: 556240.64 | K82: 444992.51 | L82: 111248.13 | O82: Suddivisione quota RUP | P82: 2454.2 | Q82: 0.0055 | R82: 2454.2
A83: MC | B83: 2023 | C83: 1273 | D83: 49 DEL 22-03-2023 | E83: 9725664FD0 | F83: affidamento di servizi applicativi in ottica cloud | I83: 29275823 | J83: 556240.64 | K83: 444992.51 | L83: 111248.13 | O83: Suddivisione quota RUP | P83: 2150.8 | Q83: 0.0053 | R83: 2150.8
A84: MC | B84: 2023 | C84: 1273 | D84: 49 DEL 22-03-2023 | E84: 9725664FD0 | F84: affidamento di servizi applicativi in ottica cloud | I84: 29275823 | J84: 556240.64 | K84: 444992.51 | L84: 111248.13 | O84: Suddivisione quota RUP | P84: 2454.2 | Q84: 0.0055 | R84: 2454.2
A85: MC | B85: 2023 | C85: 1273 | D85: 49 DEL 22-03-2023 | E85: 9725664FD0 | F85: affidamento di servizi applicativi in ottica cloud | I85: 29275823 | J85: 556240.64 | K85: 444992.51 | L85: 111248.13 | O85: Suddivisione quota RUP | P85: 2454.2 | Q85: 0.0055 | R85: 2454.2
A86: MC | B86: 2023 | C86: 1273 | D86: 49 DEL 22-03-2023 | E86: 9725664FD0 | F86: affidamento di servizi applicativi in ottica cloud | I86: 29275823 | J86: 556240.64 | K86: 444992.51 | L86: 111248.13 | O86: Suddivisione quota RUP | P86: 2454.2 | Q86: 0.0055 | R86: 2454.2
A87: MC | B87: 2023 | C87: 1273 | D87: 49 DEL 22-03-2023 | E87: 9725664FD0 | F87: affidamento di servizi applicativi in ottica cloud | I87: 29275823 | J87: 556240.64 | K87: 444992.51 | L87: 111248.13 | O87: Suddivisione quota RUP | P87: 2150.8 | Q87: 0.0053 | R87: 2150.8
A88: MC | B88: 2023 | C88: 1273 | D88: 49 DEL 22-03-2023 | E88: 9725664FD0 | F88: affidamento di servizi applicativi in ottica cloud | I88: 29275823 | J88: 556240.64 | K88: 444992.51 | L88: 111248.13 | O88: Suddivisione quota RUP | P88: 2454.2 | Q88: 0.0055 | R88: 2454.2
A89: MC | B89: 2023 | C89: 1273 | D89: 49 DEL 22-03-2023 | E89: 9725664FD0 | F89: affidamento di servizi applicativi in ottica cloud | I89: 29275823 | J89: 556240.64 | K89: 444992.51 | L89: 111248.13 | O89: Suddivisione quota RUP | P89: 2454.2 | Q89: 0.0055 | R89: 2454.2
A90: MC | B90: 2023 | C90: 1273 | D90: 49 DEL 22-03-2023 | E90: 9725664FD0 | F90: affidamento di servizi applicativi in ottica cloud | I90: 29275823 | J90: 556240.64 | K90: 444992.51 | L90: 111248.13 | O90: Suddivisione quota RUP | P90: 2454.2 | Q90: 0.0055 | R90: 2454.2
A91: MC | B91: 2023 | C91: 1273 | D91: 49 DEL 22-03-2023 | E91: 9725664FD0 | F91: affidamento di servizi applicativi in ottica cloud | I91: 29275823 | J91: 556240.64 | K91: 444992.51 | L91: 111248.13 | O91: Suddivisione quota RUP | P91: 2150.8 | Q91: =8%/15 -> 0.0053 | R91: 2150.8
A92: MC | B92: 2023 | C92: 1273 | D92: 49 DEL 22-03-2023 | E92: 9725664FD0 | F92: affidamento di servizi applicativi in ottica cloud | I92: 29275823 | J92: 556240.64 | K92: 444992.51 | L92: 111248.13 | O92: Suddivisione quota RUP | P92: 2150.8 | Q92: 0.0053 | R92: 2150.8
A93: MC | B93: 2023 | C93: 1273 | D93: 49 DEL 22-03-2023 | E93: 9725664FD0 | F93: affidamento di servizi applicativi in ottica cloud | I93: 29275823 | J93: 556240.64 | K93: 444992.51 | L93: 111248.13 | O93: Collaboratore RUP Aff. | P93: 889.99 | Q93: =3%/15 -> 0.002 | R93: 889.99
A94: MC | B94: 2023 | C94: 1273 | D94: 49 DEL 22-03-2023 | E94: 9725664FD0 | F94: affidamento di servizi applicativi in ottica cloud | I94: 29275823 | J94: 556240.64 | K94: 444992.51 | L94: 111248.13 | O94: Collaboratore RUP Aff. | P94: 889.98 | Q94: =3%/15 -> 0.002 | R94: 889.98
A95: MC | B95: 2023 | C95: 1273 | D95: 49 DEL 22-03-2023 | E95: 9725664FD0 | F95: affidamento di servizi applicativi in ottica cloud | I95: 29275823 | J95: 556240.64 | K95: 444992.51 | L95: 111248.13 | O95: Collaboratore RUP Aff. | P95: 889.99 | Q95: 0.002 | R95: 889.99
A96: MC | B96: 2023 | C96: 1273 | D96: 49 DEL 22-03-2023 | E96: 9725664FD0 | F96: affidamento di servizi applicativi in ottica cloud | I96: 29275823 | J96: 556240.64 | K96: 444992.51 | L96: 111248.13 | O96: Collaboratore RUP Aff. | P96: 889.98 | Q96: 0.002 | R96: 889.98
A97: MC | B97: 2023 | C97: 1273 | D97: 49 DEL 22-03-2023 | E97: 9725664FD0 | F97: affidamento di servizi applicativi in ottica cloud | I97: 29275823 | J97: 556240.64 | K97: 444992.51 | L97: 111248.13 | O97: Collaboratore RUP Aff. | P97: 889.98 | Q97: 0.002 | R97: 889.98
A98: MC | B98: 2023 | C98: 1273 | D98: 49 DEL 22-03-2023 | E98: 9725664FD0 | F98: affidamento di servizi applicativi in ottica cloud | I98: 29275823 | J98: 556240.64 | K98: 444992.51 | L98: 111248.13 | O98: Collaboratore RUP Aff. | P98: 889.98 | Q98: 0.002 | R98: 889.98
A99: MC | B99: 2023 | C99: 1273 | D99: 49 DEL 22-03-2023 | E99: 9725664FD0 | F99: affidamento di servizi applicativi in ottica cloud | I99: 29275823 | J99: 556240.64 | K99: 444992.51 | L99: 111248.13 | O99: Collaboratore RUP Aff. | P99: 889.98 | Q99: 0.002 | R99: 889.98
A100: MC | B100: 2023 | C100: 1273 | D100: 49 DEL 22-03-2023 | E100: 9725664FD0 | F100: affidamento di servizi applicativi in ottica cloud | I100: 29275823 | J100: 556240.64 | K100: 444992.51 | L100: 111248.13 | O100: Collaboratore RUP Aff. | P100: 889.99 | Q100: 0.002 | R100: 889.99
A101: MC | B101: 2023 | C101: 1273 | D101: 49 DEL 22-03-2023 | E101: 9725664FD0 | F101: affidamento di servizi applicativi in ottica cloud | I101: 29275823 | J101: 556240.64 | K101: 444992.51 | L101: 111248.13 | O101: Collaboratore RUP Aff. | P101: 889.98 | Q101: 0.002 | R101: 889.98
A102: MC | B102: 2023 | C102: 1273 | D102: 49 DEL 22-03-2023 | E102: 9725664FD0 | F102: affidamento di servizi applicativi in ottica cloud | I102: 29275823 | J102: 556240.64 | K102: 444992.51 | L102: 111248.13 | O102: Collaboratore RUP Aff. | P102: 889.99 | Q102: 0.002 | R102: 889.99
A103: MC | B103: 2023 | C103: 1273 | D103: 49 DEL 22-03-2023 | E103: 9725664FD0 | F103: affidamento di servizi applicativi in ottica cloud | I103: 29275823 | J103: 556240.64 | K103: 444992.51 | L103: 111248.13 | O103: Collaboratore RUP Aff. | P103: 889.99 | Q103: 0.002 | R103: 889.99
A104: MC | B104: 2023 | C104: 1273 | D104: 49 DEL 22-03-2023 | E104: 9725664FD0 | F104: affidamento di servizi applicativi in ottica cloud | I104: 29275823 | J104: 556240.64 | K104: 444992.51 | L104: 111248.13 | O104: Collaboratore RUP Aff. | P104: 889.99 | Q104: 0.002 | R104: 889.99
A105: MC | B105: 2023 | C105: 1273 | D105: 49 DEL 22-03-2023 | E105: 9725664FD0 | F105: affidamento di servizi applicativi in ottica cloud | I105: 29275823 | J105: 556240.64 | K105: 444992.51 | L105: 111248.13 | O105: Collaboratore RUP Aff. | P105: 889.99 | Q105: 0.002 | R105: 889.99
A106: MC | B106: 2023 | C106: 1273 | D106: 49 DEL 22-03-2023 | E106: 9725664FD0 | F106: affidamento di servizi applicativi in ottica cloud | I106: 29275823 | J106: 556240.64 | K106: 444992.51 | L106: 111248.13 | O106: Collaboratore RUP Aff. | P106: 889.99 | Q106: 0.002 | R106: 889.99
A107: MC | B107: 2023 | C107: 1273 | D107: 49 DEL 22-03-2023 | E107: 9725664FD0 | F107: affidamento di servizi applicativi in ottica cloud | I107: 29275823 | J107: 556240.64 | K107: 444992.51 | L107: 111248.13 | O107: Collaboratore RUP Aff. | P107: 889.99 | Q107: 0.002 | R107: 889.99
A108: GC | B108: 2023 | C108: 1273 | D108: n.20 del 30.01.2023 | E108: 9630286B67 | F108: Consulenza progettuale a consumo per prodotti Oracle | G108: 2023-03-27 | H108: 2024-03-26 | I108: 197600 | J108: =+I108*2/100 -> 3952 | K108: =+J108*0.8 -> 3161.6 | L108: =+J108*0.2 -> 790.4 | M108: =+R108+R109+R110+R111+R112 -> 980.1 | N108: =+P108+P110+P111+P112+P109 -> 980.1 | O108: Inc. Pred. Doc | P108: =+K108*Q108 -> 158.08 | Q108: 0.05 | R108: =ROUND(P108,2) -> 158.08 | X108: 0
A109: GC | B109: 2023 | C109: 1273 | D109: n.20 del 30.01.2023 | E109: 9630286B67 | F109: consulenza progettuale a consumo per prodotti Oracle | G109: 2023-03-27 | H109: 2024-03-26 | I109: 197600 | J109: =+I109*2/100 -> 3952 | K109: 3161.6 | L109: 790.4 | O109: Coll. Inc. Pred. Doc | P109: =+K109*Q109 -> 205.5 | Q109: 0.065 | R109: =ROUND(P109,2) -> 205.5
A110: GC | B110: 2023 | C110: 1273 | D110: n.20 del 30.01.2023 | E110: 9630286B67 | F110: Consulenza progettuale a consumo per prodotti Oracle | G110: 2023-03-27 | H110: 2024-03-26 | I110: 197600 | J110: 3952 | K110: 3161.6 | L110: 790.4 | O110: Coll. Inc. Pred. Doc | P110: =+K110*Q110 -> 110.66 | Q110: 0.035 | R110: 110.66
A111: GC | B111: 2023 | C111: 1273 | D111: n.20 del 30.01.2023 | E111: 9630286B67 | F111: Consulenza progettuale a consumo per prodotti Oracle | G111: 2023-03-27 | H111: 2024-03-26 | I111: 197600 | J111: 3952 | K111: 3161.6 | L111: 790.4 | O111: RUP Affidamento | P111: =+K111*Q111 -> 316.16 | Q111: 0.1 | R111: 316.16
A112: GC | B112: 2023 | C112: 1273 | D112: n.20 del 30.01.2023 | E112: 9630286B67 | F112: Consulenza progettuale a consumo per prodotti Oracle | G112: 2023-03-27 | H112: 2024-03-26 | I112: 197600 | J112: 3952 | K112: 3161.6 | L112: 790.4 | O112: Coll RUP Aff. | P112: =+K112*Q112 -> 189.7 | Q112: 0.06 | R112: 189.7
A113: GC | B113: 2023 | C113: 1273 | D113: n.53 del 30.03.2023 | E113: 9719236745 | F113: supporto tecnico di manutenzione ordinaria Oracle | G113: 2023-05-07 | H113: 2024-05-06 | I113: 166404.4 | J113: =+I113*2/100 -> 3328.09 | K113: =+J113*0.8 -> 2662.47 | L113: =+J113*0.2 -> 665.62 | M113: =+R113+R114+R115+R116+R117 -> 825.37 | N113: =+P113+P115+P116+P117+P114 -> 825.37 | O113: Inc. Pred. Doc | P113: =+K113*Q113 -> 133.12 | Q113: 0.05 | R113: =ROUND(P113,2) -> 133.12 | X113: 0
A114: GC | B114: 2023 | C114: 1273 | D114: n.53 del 30.03.2023 | E114: 9719236745 | F114: supporto tecnico di manutenzione ordinaria Oracle | G114: 2023-05-07 | H114: 2024-05-06 | I114: 166404.4 | J114: =+I114*2/100 -> 3328.09 | K114: 2662.47 | L114: 665.62 | O114: Coll. Inc. Pred. Doc | P114: =+K114*Q114 -> 173.06 | Q114: 0.065 | R114: =ROUND(P114,2) -> 173.06
A115: GC | B115: 2023 | C115: 1273 | D115: n.53 del 30.03.2023 | E115: 9719236745 | F115: supporto tecnico di manutenzione ordinaria Oracle | G115: 2023-05-07 | H115: 2024-05-06 | I115: 166404.4 | J115: 3328.09 | K115: 2662.47 | L115: 665.62 | O115: Coll. Inc. Pred. Doc | P115: =+K115*Q115 -> 93.19 | Q115: 0.035 | R115: 93.19
A116: GC | B116: 2023 | C116: 1273 | D116: n.53 del 30.03.2023 | E116: 9719236745 | F116: supporto tecnico di manutenzione ordinaria Oracle | G116: 2023-05-07 | H116: 2024-05-06 | I116: 166404.4 | J116: 3328.09 | K116: 2662.47 | L116: 665.62 | O116: RUP Affidamento | P116: =+K116*Q116 -> 266.25 | Q116: 0.1 | R116: 266.25
A117: GC | B117: 2023 | C117: 1273 | D117: n.53 del 30.03.2023 | E117: 9719236745 | F117: supporto tecnico di manutenzione ordinaria Oracle | G117: 2023-05-07 | H117: 2024-05-06 | I117: 166404.4 | J117: 3328.09 | K117: 2662.47 | L117: 665.62 | O117: Coll RUP Aff. | P117: =+K117*Q117 -> 159.75 | Q117: 0.06 | R117: 159.75
A118: LC | B118: 2023 | C118: 1273 | D118: DETERMINA N. n. 86 del 23/05/2023 | E118: 9840027728 | F118: Oracle CLOUD Infrastructure | G118: 6 mesi dal verbale di avvio | I118: 138998 | J118: =+I118*2% -> 2779.96 | K118: =+J118*0.8 -> 2223.97 | L118: =+J118*0.2 -> 555.99 | M118: =+R118+R119+R120+R121+R122 -> 689.43 | N118: =+P118+P119+P120+P121+P122+0.01 -> 689.44 | O118: Inc. Pred. Doc | P118: =+K118*Q118 -> 111.2 | Q118: 0.05 | R118: =ROUND(P118,2) -> 111.2 | X118: 0
A119: LC | B119: 2023 | C119: 1273 | D119: DETERMINA N. n. 86 del 23/05/2023 | E119: 9840027728 | F119: Oracle CLOUD Infrastructure | G119: 6 mesi dal verbale di avvio | I119: 138998 | J119: =+I119*2% -> 2779.96 | K119: =+J119*0.8 -> 2223.97 | L119: =+J119*0.2 -> 555.99 | O119: Coll. Inc. Pred. Doc | P119: 144.55 | Q119: 0.065 | R119: =ROUND(P119,2) -> 144.55
A120: LC | B120: 2023 | C120: 1273 | D120: DETERMINA N. n. 86 del 23/05/2023 | E120: 9840027728 | F120: Oracle CLOUD Infrastructure | G120: 6 mesi dal verbale di avvio | I120: 138998 | J120: 2779.96 | K120: 2223.97 | L120: 555.99 | O120: Coll. Inc. Pred. Doc | P120: =+K120*Q120 -> 77.84 | Q120: 0.035 | R120: 77.84
A121: LC | B121: 2023 | C121: 1273 | D121: DETERMINA N. n. 86 del 23/05/2023 | E121: 9840027728 | F121: Oracle CLOUD Infrastructure | G121: 6 mesi dal verbale di avvio | I121: 138998 | J121: 2779.96 | K121: 2223.97 | L121: 555.99 | O121: RUP Affidamento | P121: =+K121*Q121 -> 222.4 | Q121: 0.1 | R121: 222.4
A122: LC | B122: 2023 | C122: 1273 | D122: DETERMINA N. n. 86 del 23/05/2023 | E122: 9840027728 | F122: Oracle CLOUD Infrastructure | G122: 6 mesi dal verbale di avvio | I122: 138998 | J122: =+I122*2% -> 2779.96 | K122: =+J122*0.8 -> 2223.97 | L122: =+J122*0.2 -> 555.99 | O122: Coll RUP Aff. | P122: =+K122*Q122 -> 133.44 | Q122: 0.06 | R122: 133.44
A123: ML | B123: 2023 | C123: 1273 | D123: 82 DEL 10/05/2023 | E123: Z843B1A8CD | F123: Materiale informatico | G123: 2023-05-01 | H123: 2024-05-01 | I123: 11000 | J123: =+I123*0.02 -> 220 | K123: =+J123*0.8 -> 176 | L123: =+J123*0.2 -> 44 | M123: =+R123+R124+R125+R126 -> 54.56 | N123: =+P123+P124+P125+P126 -> 54.56 | O123: Inc. Pred. Doc | P123: =+K123*Q123 -> 8.8 | Q123: 0.05 | R123: =ROUND(P123,2) -> 8.8 | X123: 0
A124: ML | B124: 2023 | C124: 1273 | D124: 82 DEL 10/05/2023 | E124: Z843B1A8CD | F124: Materiale informatico | G124: 2023-05-01 | H124: 2024-05-01 | I124: 11000 | J124: 220 | K124: 176 | L124: 44 | O124: Coll. Inc. Pred. Doc | P124: =+K124*Q124 -> 17.6 | Q124: 0.1 | R124: 17.6
A125: ML | B125: 2023 | C125: 1273 | D125: 82 DEL 10/05/2023 | E125: Z843B1A8CD | F125: Materiale informatico | G125: 2023-05-01 | H125: 2024-05-01 | I125: 11000 | J125: 220 | K125: 176 | L125: 44 | O125: RUP Affidamento | P125: =+K125*Q125 -> 17.6 | Q125: 0.1 | R125: 17.6
A126: ML | B126: 2023 | C126: 1273 | D126: 82 DEL 10/05/2023 | E126: Z843B1A8CD | F126: Materiale informatico | G126: 2023-05-01 | H126: 2024-05-01 | I126: 11000 | J126: 220 | K126: 176 | L126: 44 | O126: Coll RUP Aff. | P126: =+K126*Q126 -> 10.56 | Q126: 0.06 | R126: 10.56
A127: ML | B127: 2023 | C127: 1273 | D127: 110 DEL 14/06/2023 | E127: ZBA3B8ACDE | F127: Red Hat | G127: 2023-06-01 | H127: 2026-06-01 | I127: 15300 | J127: =+I127*0.02 -> 306 | K127: =+J127*0.8 -> 244.8 | L127: =+J127*0.2 -> 61.2 | M127: =+R127+R128+R129+R130 -> 75.89 | N127: =+P127+P128+P129+P130 -> 75.89 | O127: Inc. Pred. Doc | P127: =+K127*Q127 -> 12.24 | Q127: 0.05 | R127: 12.24 | X127: 0
A128: ML | B128: 2023 | C128: 1273 | D128: 110 DEL 14/06/2023 | E128: ZBA3B8ACDE | F128: Red Hat | G128: 2023-06-01 | H128: 2026-06-01 | I128: 15300 | J128: 306 | K128: 244.8 | L128: 61.2 | O128: Coll. Inc. Pred. Doc | P128: =+K128*Q128 -> 24.48 | Q128: 0.1 | R128: 24.48
A129: ML | B129: 2023 | C129: 1273 | D129: 110 DEL 14/06/2023 | E129: ZBA3B8ACDE | F129: Red Hat | G129: 2023-06-01 | H129: 2026-06-01 | I129: 15300 | J129: 306 | K129: 244.8 | L129: 61.2 | O129: RUP Affidamento | P129: =+K129*Q129 -> 24.48 | Q129: 0.1 | R129: 24.48
A130: ML | B130: 2023 | C130: 1273 | D130: 110 DEL 14/06/2023 | E130: ZBA3B8ACDE | F130: Red Hat | G130: 2023-06-01 | H130: 2026-06-01 | I130: 15300 | J130: 306 | K130: 244.8 | L130: 61.2 | O130: Coll RUP Aff. | P130: =+K130*Q130 -> 14.69 | Q130: 0.06 | R130: 14.69
A131: ML | B131: 2023 | C131: 1273 | D131: 118 DEL 21/06/2023 | E131: 9906093E89 | F131: Azure Monetary Commit | G131: 2023-07-01 | H131: 2026-07-01 | I131: 138500 | J131: =+I131*0.02 -> 2770 | K131: =+J131*0.8 -> 2216 | L131: =+J131*0.2 -> 554 | M131: =+R131+R132+R133+R134+R135 -> 686.96 | N131: =+P131+P132+P133+P134+P135 -> 686.96 | O131: Inc. Pred. Doc | P131: =+K131*Q131 -> 110.8 | Q131: 0.05 | R131: 110.8 | X131: 0
A132: ML | B132: 2023 | C132: 1273 | D132: 118 DEL 21/06/2023 | E132: 9906093E89 | F132: Azure Monetary Commit | G132: 2023-07-01 | H132: 2026-07-01 | I132: 138500 | J132: 2770 | K132: 2216 | L132: 554 | O132: Coll. Inc. Pred. Doc | P132: =+K132*Q132 -> 144.04 | Q132: 0.065 | R132: =ROUND(P132,2) -> 144.04
A133: ML | B133: 2023 | C133: 1273 | D133: 118 DEL 21/06/2023 | E133: 9906093E89 | F133: Azure Monetary Commit | G133: 2023-07-01 | H133: 2026-07-01 | I133: 138500 | J133: 2770 | K133: 2216 | L133: 554 | O133: Coll. Inc. Pred. Doc | P133: =+K133*Q133 -> 77.56 | Q133: 0.035 | R133: 77.56
A134: ML | B134: 2023 | C134: 1273 | D134: 118 DEL 21/06/2023 | E134: 9906093E89 | F134: Azure Monetary Commit | G134: 2023-07-01 | H134: 2026-07-01 | I134: 138500 | J134: 2770 | K134: 2216 | L134: 554 | O134: RUP Affidamento | P134: =+K134*Q134 -> 221.6 | Q134: 0.1 | R134: 221.6
A135: ML | B135: 2023 | C135: 1273 | D135: 118 DEL 21/06/2023 | E135: 9906093E89 | F135: Azure Monetary Commit | G135: 2023-07-01 | H135: 2026-07-01 | I135: 138500 | J135: =+I135*0.02 -> 2770 | K135: =+J135*0.8 -> 2216 | L135: =+J135*0.2 -> 554 | O135: Coll RUP Aff. | P135: =+K135*Q135 -> 132.96 | Q135: 0.06 | R135: 132.96
A136: MT | B136: 2023 | C136: 1273 | D136: 47 del 20/3/2023 | E136: 9715229C95 | F136: Comvault | G136: 2023-06-29 | H136: 2026-06-28 | I136: 132000 | J136: 2640 | K136: 2112 | L136: 528 | M136: =+R136+R137+R138+R139+R140 -> 654.72 | N136: =+R136+R137+R138+R139+R140 -> 654.72 | O136: Inc. Pred. Doc | P136: =+K136*Q136 -> 105.6 | Q136: 0.05 | R136: =ROUND(P136,2) -> 105.6 | X136: 0
A137: MT | B137: 2023 | C137: 1273 | D137: 47 del 20/3/2023 | E137: 9715229C95 | F137: Comvault | G137: 2023-06-29 | H137: 2026-06-28 | I137: 132000 | J137: 2640 | K137: 2112 | L137: 528 | O137: Coll. Inc. Pred. Doc | P137: =+K137*Q137 -> 137.28 | Q137: 0.065 | R137: =ROUND(P137,2) -> 137.28
A138: MT | B138: 2023 | C138: 1273 | D138: 47 del 20/3/2023 | E138: 9715229C95 | F138: Comvault | G138: 2023-06-29 | H138: 2026-06-28 | I138: 132000 | J138: 2640 | K138: 2112 | L138: 528 | O138: Coll. Inc. Pred. Doc | P138: =+K138*Q138 -> 73.92 | Q138: 0.035 | R138: 73.92
A139: MT | B139: 2023 | C139: 1273 | D139: 47 del 20/3/2023 | E139: 9715229C95 | F139: Comvault | G139: 2023-06-29 | H139: 2026-06-28 | I139: 132000 | J139: 2640 | K139: 2112 | L139: 528 | O139: RUP Affidamento | P139: =+K139*Q139 -> 211.2 | Q139: 0.1 | R139: 211.2
A140: MT | B140: 2023 | C140: 1273 | D140: 47 del 20/3/2023 | E140: 9715229C95 | F140: Comvault | G140: 2023-06-29 | H140: 2026-06-28 | I140: 132000 | J140: 2640 | K140: 2112 | L140: 528 | O140: Coll RUP Aff. | P140: =+K140*Q140 -> 126.72 | Q140: 0.06 | R140: 126.72
A141: MC | B141: 2023 | C141: 1273 | D141: 115 DEL 15/06/2023 | E141: 9884791395 | F141: adesione convenzione licenze microsoft | G141: 2023-07-01 | H141: 2026-06-30 | I141: 3553687.44 | J141: =+I141*1.9/100 -> 67520.06 | K141: 54016.05 | L141: 13504.01 | M141: =SUM(R141:R157) -> 7562.24 | N141: 7562.24 | O141: Inc. Pred. Doc | P141: =+K141*Q141 -> 270.08 | Q141: 0.005 | R141: =ROUND(P141,2) -> 270.08 | X141: 0
A142: MC | B142: 2023 | C142: 1273 | D142: 115 DEL 15/06/2023 | E142: 9884791395 | F142: adesione convenzione licenze microsoft | G142: 2023-07-01 | H142: 2026-06-30 | I142: 3553687.44 | J142: =+I142*1.9/100 -> 67520.06 | K142: 54016.05 | L142: 13504.01 | O142: Inc. Pred. Doc | P142: =+K142*Q142 -> 270.08 | Q142: 0.005 | R142: =ROUND(P142,2) -> 270.08
A143: MC | B143: 2023 | C143: 1273 | D143: 115 DEL 15/06/2023 | E143: 9884791395 | F143: adesione convenzione licenze microsoft | G143: 2023-07-01 | H143: 2026-06-30 | I143: 3553687.44 | J143: 67520.06 | K143: 54016.05 | L143: 13504.01 | O143: Inc. Pred. Doc | P143: =+K143*Q143 -> 270.08 | Q143: 0.005 | R143: 270.08
A144: MC | B144: 2023 | C144: 1273 | D144: 115 DEL 15/06/2023 | E144: 9884791395 | F144: adesione convenzione licenze microsoft | G144: 2023-07-01 | H144: 2026-06-30 | I144: 3553687.44 | J144: 67520.06 | K144: 54016.05 | L144: 13504.01 | O144: Inc. Pred. Doc | P144: =+K144*Q144 -> 270.08 | Q144: 0.005 | R144: 270.08
A145: MC | B145: 2023 | C145: 1273 | D145: 115 DEL 15/06/2023 | E145: 9884791395 | F145: adesione convenzione licenze microsoft | G145: 2023-07-01 | H145: 2026-06-30 | I145: 3553687.44 | J145: 67520.06 | K145: 54016.05 | L145: 13504.01 | O145: Coll. Inc. Pred. Doc | P145: =+K145*Q145 -> 135.04 | Q145: 0.0025 | R145: 135.04
A146: MC | B146: 2023 | C146: 1273 | D146: 115 DEL 15/06/2023 | E146: 9884791395 | F146: adesione convenzione licenze microsoft | G146: 2023-07-01 | H146: 2026-06-30 | I146: 3553687.44 | J146: 67520.06 | K146: 54016.05 | L146: 13504.01 | O146: Coll. Inc. Pred. Doc | P146: =+K146*Q146 -> 135.04 | Q146: 0.0025 | R146: 135.04
A147: MC | B147: 2023 | C147: 1273 | D147: 115 DEL 15/06/2023 | E147: 9884791395 | F147: adesione convenzione licenze microsoft | G147: 2023-07-01 | H147: 2026-06-30 | I147: 3553687.44 | J147: 67520.06 | K147: 54016.05 | L147: 13504.01 | O147: Coll. Inc. Pred. Doc | P147: =+K147*Q147 -> 135.04 | Q147: 0.0025 | R147: 135.04
A148: MC | B148: 2023 | C148: 1273 | D148: 115 DEL 15/06/2023 | E148: 9884791395 | F148: adesione convenzione licenze microsoft | G148: 2023-07-01 | H148: 2026-06-30 | I148: 3553687.44 | J148: 67520.06 | K148: 54016.05 | L148: 13504.01 | O148: Coll. Inc. Pred. Doc | P148: =+K148*Q148 -> 135.04 | Q148: 0.0025 | R148: 135.04
A149: MC | B149: 2023 | C149: 1273 | D149: 115 DEL 15/06/2023 | E149: 9884791395 | F149: adesione convenzione licenze microsoft | G149: 2023-07-01 | H149: 2026-06-30 | I149: 3553687.44 | J149: 67520.06 | K149: 54016.05 | L149: 13504.01 | O149: RUP Affidamento | P149: 0 | Q149: 0.08 | R149: 0
A150: MC | B150: 2023 | C150: 1273 | D150: 115 DEL 15/06/2023 | E150: 9884791395 | F150: adesione convenzione licenze microsoft | G150: 2023-07-01 | H150: 2026-06-30 | I150: 3553687.44 | J150: 67520.06 | K150: 54016.05 | L150: 13504.01 | O150: Suddivisione quota RUP | P150: =+K150*Q150 -> 1080.32 | Q150: 0.02 | R150: 1080.32
A151: MC | B151: 2023 | C151: 1273 | D151: 115 DEL 15/06/2023 | E151: 9884791395 | F151: adesione convenzione licenze microsoft | G151: 2023-07-01 | H151: 2026-06-30 | I151: 3553687.44 | J151: 67520.06 | K151: 54016.05 | L151: 13504.01 | O151: Suddivisione quota RUP | P151: =+K151*Q151 -> 1080.32 | Q151: 0.02 | R151: 1080.32
A152: MC | B152: 2023 | C152: 1273 | D152: 115 DEL 15/06/2023 | E152: 9884791395 | F152: adesione convenzione licenze microsoft | G152: 2023-07-01 | H152: 2026-06-30 | I152: 3553687.44 | J152: 67520.06 | K152: 54016.05 | L152: 13504.01 | O152: Suddivisione quota RUP | P152: =+K152*Q152 -> 1080.32 | Q152: 0.02 | R152: 1080.32
A153: MC | B153: 2023 | C153: 1273 | D153: 115 DEL 15/06/2023 | E153: 9884791395 | F153: adesione convenzione licenze microsoft | G153: 2023-07-01 | H153: 2026-06-30 | I153: 3553687.44 | J153: 67520.06 | K153: 54016.05 | L153: 13504.01 | O153: Suddivisione quota RUP | P153: =+K153*Q153 -> 1080.32 | Q153: 0.02 | R153: 1080.32
A154: MC | B154: 2023 | C154: 1273 | D154: 115 DEL 15/06/2023 | E154: 9884791395 | F154: adesione convenzione licenze microsoft | G154: 2023-07-01 | H154: 2026-06-30 | I154: 3553687.44 | J154: 67520.06 | K154: 54016.05 | L154: 13504.01 | O154: Collaboratore RUP Aff. | P154: =+K154*Q154 -> 405.12 | Q154: 0.0075 | R154: 405.12
A155: MC | B155: 2023 | C155: 1273 | D155: 115 DEL 15/06/2023 | E155: 9884791395 | F155: adesione convenzione licenze microsoft | G155: 2023-07-01 | H155: 2026-06-30 | I155: 3553687.44 | J155: 67520.06 | K155: 54016.05 | L155: 13504.01 | O155: Collaboratore RUP Aff. | P155: =+K155*Q155 -> 405.12 | Q155: 0.0075 | R155: 405.12
A156: MC | B156: 2023 | C156: 1273 | D156: 115 DEL 15/06/2023 | E156: 9884791395 | F156: adesione convenzione licenze microsoft | G156: 2023-07-01 | H156: 2026-06-30 | I156: 3553687.44 | J156: 67520.06 | K156: 54016.05 | L156: 13504.01 | O156: Collaboratore RUP Aff. | P156: =+K156*Q156 -> 405.12 | Q156: 0.0075 | R156: 405.12
A157: MC | B157: 2023 | C157: 1273 | D157: 115 DEL 15/06/2023 | E157: 9884791395 | F157: adesione convenzione licenze microsoft | G157: 2023-07-01 | H157: 2026-06-30 | I157: 3553687.44 | J157: 67520.06 | K157: 54016.05 | L157: 13504.01 | O157: Collaboratore RUP Aff. | P157: =+K157*Q157 -> 405.12 | Q157: 0.0075 | R157: 405.12
A158: MP | B158: 2023 | C158: 1273 | D158: 119 DEL 21-06-2023 | E158: 9905447972 | F158: Cybersecurity 2 | G158: 2023-07-01 | H158: 2025-06-30 | I158: 411672 | J158: =+I158*1.9/100 -> 7821.77 | K158: 6257.42 | L158: 1564.35 | M158: =+R158+R159+R160+R161 -> 876.03 | N158: 876.03 | O158: Inc. Pred. Doc | P158: =+K158*Q158 -> 125.15 | Q158: 0.02 | R158: =ROUND(P158,2) -> 125.15 | X158: 0
A159: MP | B159: 2023 | C159: 1273 | D159: 119 DEL 21-06-2023 | E159: 9905447972 | F159: Cybersecurity 2 | G159: 2023-07-01 | H159: 2025-06-30 | I159: 411672 | J159: =+I159*1.9/100 -> 7821.77 | K159: 6257.42 | L159: 1564.35 | O159: Coll. Inc. Pred. Doc | P159: =+K159*Q159 -> 62.57 | Q159: 0.01 | R159: =ROUND(P159,2) -> 62.57
A160: MP | B160: 2023 | C160: 1273 | D160: 119 DEL 21-06-2023 | E160: 9905447972 | F160: Cybersecurity 2 | G160: 2023-07-01 | H160: 2025-06-30 | I160: 411672 | J160: =+I160*1.9/100 -> 7821.77 | K160: 6257.42 | L160: 1564.35 | O160: RUP Affidamento | P160: =+K160*Q160 -> 500.59 | Q160: 0.08 | R160: 500.59
A161: MP | B161: 2023 | C161: 1273 | D161: 119 DEL 21-06-2023 | E161: 9905447972 | F161: Cybersecurity 2 | G161: 2023-07-01 | H161: 2025-06-30 | I161: 411672 | J161: =+I161*1.9/100 -> 7821.77 | K161: 6257.42 | L161: 1564.35 | O161: Coll RUP Aff. | P161: =+K161*Q161 -> 187.72 | Q161: 0.03 | R161: 187.72
A162: LC | B162: 2022 | C162: 1273 | D162: DETERMINA N. n. 203 del 12/12/2022 | E162: 95381602A2 | F162: servizio di consultazione di durata biennale di banche dati giuridiche | G162: 24 mesi dal 28/02/2023 | I162: 380000 | J162: =+I162*1.9% -> 7220 | K162: =+J162*0.8 -> 5776 | L162: =+J162*0.2 -> 1444 | M162: =+R162+R163+R164+R165+R166 -> 1790.56 | N162: 1790.56 | O162: Inc. Pred. Doc | P162: =+K162*Q162 -> 288.8 | Q162: 0.05 | R162: =ROUND(P162,2) -> 288.8 | X162: 0
A163: LC | B163: 2022 | C163: 1273 | D163: DETERMINA N. n. 203 del 12/12/2022 | E163: 95381602A2 | F163: servizio di consultazione di durata biennale di banche dati giuridiche | I163: 380000 | J163: =+I163*1.9% -> 7220 | K163: =+J163*0.8 -> 5776 | L163: =+J163*0.2 -> 1444 | O163: Coll. Inc. Pred. Doc | P163: =+K163*Q163 -> 375.44 | Q163: 0.065 | R163: =ROUND(P163,2) -> 375.44
A164: LC | B164: 2022 | C164: 1273 | D164: DETERMINA N. n. 203 del 12/12/2022 | E164: 95381602A2 | F164: servizio di consultazione di durata biennale di banche dati giuridiche | I164: 380000 | J164: 7220 | K164: 5776 | L164: 1444 | O164: Coll. Inc. Pred. Doc | P164: =+K164*Q164 -> 202.16 | Q164: 0.035 | R164: 202.16
A165: LC | B165: 2022 | C165: 1273 | D165: DETERMINA N. n. 203 del 12/12/2022 | E165: 95381602A2 | F165: servizio di consultazione di durata biennale di banche dati giuridiche | I165: 380000 | J165: 7220 | K165: 5776 | L165: 1444 | O165: RUP Affidamento | P165: =+K165*Q165 -> 577.6 | Q165: 0.1 | R165: 577.6
A166: LC | B166: 2022 | C166: 1273 | D166: DETERMINA N. n. 203 del 12/12/2022 | E166: 95381602A2 | F166: servizio di consultazione di durata biennale di banche dati giuridiche | I166: 380000 | J166: 7220 | K166: 5776 | L166: 1444 | O166: Coll RUP Aff. | P166: =+K166*Q166 -> 346.56 | Q166: 0.06 | R166: 346.56
A167: LC | B167: 2022 | C167: 1273 | D167: DETERMINA N. n. 214 del 20/12/2022 | E167: 95585236B5 | F167: Servizi di Cloud Computing | G167: 6 mesi dal 01/02/2023 | I167: 329087.61 | J167: =+I167*1.9% -> 6252.66 | K167: =+J167*0.8 -> 5002.13 | L167: =+J167*0.2 -> 1250.53 | M167: =+R167+R168+R169+R170+R171 -> 1550.66 | N167: =+P167+P168+P169+P171+P170 -> 1550.66 | O167: Inc. Pred. Doc | P167: =+K167*Q167 -> 250.11 | Q167: 0.05 | R167: =ROUND(P167,2) -> 250.11
A168: LC | B168: 2022 | C168: 1273 | D168: DETERMINA N. n. 214 del 20/12/2022 | E168: 95585236B5 | F168: Servizi di Cloud Computing | I168: 329087.61 | J168: =+I168*1.9% -> 6252.66 | K168: =+J168*0.8 -> 5002.13 | L168: =+J168*0.2 -> 1250.53 | O168: Coll. Inc. Pred. Doc | P168: =+K168*Q168 -> 325.14 | Q168: 0.065 | R168: =ROUND(P168,2) -> 325.14
A169: LC | B169: 2022 | C169: 1273 | D169: DETERMINA N. n. 214 del 20/12/2022 | E169: 95585236B5 | F169: Servizi di Cloud Computing | I169: 329087.61 | J169: 6252.66 | K169: 5002.13 | L169: 1250.53 | O169: Coll. Inc. Pred. Doc | P169: =+K169*Q169 -> 175.07 | Q169: 0.035 | R169: 175.07
A170: LC | B170: 2022 | C170: 1273 | D170: DETERMINA N. n. 214 del 20/12/2022 | E170: 95585236B5 | F170: Servizi di Cloud Computing | I170: 329087.61 | J170: 6252.66 | K170: 5002.13 | L170: 1250.53 | O170: RUP Affidamento | P170: =+K170*Q170 -> 500.21 | Q170: 0.1 | R170: 500.21
A171: LC | B171: 2022 | C171: 1273 | D171: DETERMINA N. n. 214 del 20/12/2022 | E171: 95585236B5 | F171: Servizi di Cloud Computing | I171: 329087.61 | J171: 6252.66 | K171: 5002.13 | L171: 1250.53 | O171: Coll RUP Aff. | P171: =+K171*Q171 -> 300.13 | Q171: 0.06 | R171: 300.13
A172: CQ | B172: 2023 | C172: 4250 | D172: 23 DEL 08-02-2023 | E172: 9635852C9C | F172: STARTWEB | G172: 2023-03-01 | H172: 2023-12-31 | I172: 30000 | J172: =+I172*0.02 -> 600 | K172: =+J172*0.8 -> 480 | L172: =+J172*0.2 -> 120 | M172: 148.8 | N172: =+R172+R173+R174+R175 -> 148.8 | O172: Inc. Pred. Doc | P172: =+K172*Q172 -> 24 | Q172: 0.05 | R172: =ROUND(P172,2) -> 24 | X172: 0
A173: CQ | B173: 2023 | C173: 4250 | D173: 23 DEL 08-02-2023 | E173: 9635852C9C | F173: STARTWEB | G173: 2023-03-01 | H173: 2023-12-31 | I173: 30000 | J173: =+I173*0.02 -> 600 | K173: =+J173*0.8 -> 480 | L173: =+J173*0.2 -> 120 | O173: Coll. Inc. Pred. Doc | P173: =+K173*Q173 -> 48 | Q173: 0.1 | R173: =ROUND(P173,2) -> 48
A174: CQ | B174: 2023 | C174: 4250 | D174: 23 DEL 08-02-2023 | E174: 9635852C9C | F174: STARTWEB | G174: 2023-03-01 | H174: 2023-12-31 | I174: 30000 | J174: 600 | K174: 480 | L174: 120 | O174: RUP Affidamento | P174: =+K174*Q174 -> 48 | Q174: 0.1 | R174: 48
A175: CQ | B175: 2023 | C175: 4250 | D175: 23 DEL 08-02-2023 | E175: 9635852C9C | F175: STARTWEB | G175: 2023-03-01 | H175: 2023-12-31 | I175: 30000 | J175: 600 | K175: 480 | L175: 120 | O175: Coll RUP Aff. | P175: =+K175*Q175 -> 28.8 | Q175: 0.06 | R175: 28.8
A176: MT | B176: 2023 | C176: 4250 | D176: 104 del 06/06/2023 | E176: Z403B68D29 | F176: acquisto stampanti | G176: 2023-06-14 | H176: 2028-06-13 | I176: 4860 | J176: 97.2 | K176: 77.76 | L176: 19.44 | M176: =+R176+R177+R178+R179 -> 10.89 | N176: =+P176+P177+P178+P179 -> 10.89 | O176: Inc. Pred. Doc | P176: =+K176*Q176 -> 1.56 | Q176: 0.02 | R176: =ROUND(P176,2) -> 1.56 | X176: 0
A177: MT | B177: 2023 | C177: 4250 | D177: 104 del 06/06/2023 | E177: Z403B68D29 | F177: acquisto stampanti | G177: 2023-06-14 | H177: 2028-06-13 | I177: 4860 | J177: 97.2 | K177: 77.76 | L177: 19.44 | O177: Coll. Inc. Pred. Doc | P177: =+K177*Q177 -> 0.78 | Q177: 0.01 | R177: =ROUND(P177,2) -> 0.78
A178: MT | B178: 2023 | C178: 4250 | D178: 104 del 06/06/2023 | E178: Z403B68D29 | F178: acquisto stampanti | G178: 2023-06-14 | H178: 2028-06-13 | I178: 4860 | J178: 97.2 | K178: 77.76 | L178: 19.44 | O178: RUP Affidamento | P178: =+K178*Q178 -> 6.22 | Q178: 0.08 | R178: 6.22
A179: MT | B179: 2023 | C179: 4250 | D179: 104 del 06/06/2023 | E179: Z403B68D29 | F179: acquisto stampanti | G179: 2023-06-14 | H179: 2028-06-13 | I179: 4860 | J179: 97.2 | K179: 77.76 | L179: 19.44 | O179: Coll RUP Aff. | P179: =+K179*Q179 -> 2.33 | Q179: 0.03 | R179: 2.33
A180: MT | B180: 2023 | C180: 4250 | D180: 105 del 06/06/2023 | E180: Z3D3B6C72E | F180: acquisto stampanti magistrati | G180: 2023-07-05 | H180: 2028-06-04 | I180: 19900 | J180: =+I180*0.02 -> 398 | K180: =+J180*0.8 -> 318.4 | L180: =+J180*0.2 -> 79.6 | M180: =+R180+R181+R182+R183 -> 98.7 | N180: =+P180+P181+P182+P183 -> 98.7 | O180: Inc. Pred. Doc | P180: =+K180*Q180 -> 15.92 | Q180: 0.05 | R180: =ROUND(P180,2) -> 15.92 | X180: 0
A181: MT | B181: 2023 | C181: 4250 | D181: 105 del 06/06/2023 | E181: Z3D3B6C72E | F181: acquisto stampanti magistrati | G181: 2023-07-05 | H181: 2028-06-04 | I181: 19900 | J181: 398 | K181: 318.4 | L181: 79.6 | O181: Coll. Inc. Pred. Doc | P181: =+K181*Q181 -> 31.84 | Q181: 0.1 | R181: =ROUND(P181,2) -> 31.84
A182: MT | B182: 2023 | C182: 4250 | D182: 105 del 06/06/2023 | E182: Z3D3B6C72E | F182: acquisto stampanti magistrati | G182: 2023-07-05 | H182: 2028-06-04 | I182: 19900 | J182: 398 | K182: 318.4 | L182: 79.6 | O182: RUP Affidamento | P182: =+K182*Q182 -> 31.84 | Q182: 0.1 | R182: 31.84
A183: MT | B183: 2023 | C183: 4250 | D183: 105 del 06/06/2023 | E183: Z3D3B6C72E | F183: acquisto stampanti magistrati | G183: 2023-07-05 | H183: 2028-06-04 | I183: 19900 | J183: 398 | K183: 318.4 | L183: 79.6 | O183: Coll RUP Aff. | P183: =+K183*Q183 -> 19.1 | Q183: 0.06 | R183: 19.1
A184: MT | B184: 2023 | C184: 4250 | D184: 56 del 06/04/2023 | E184: 97621236BE | F184: storage CED | G184: 2023-09-01 | H184: 2026-08-31 | I184: 214560 | J184: 4291.2 | K184: 3432.96 | L184: 858.24 | M184: =+R184+R185+R186+R187+R188 -> 1064.22 | N184: =+R184+R185+R186+R187+R188 -> 1064.22 | O184: Inc. Pred. Doc | P184: =+K184*Q184 -> 171.65 | Q184: 0.05 | R184: =ROUND(P184,2) -> 171.65 | X184: 0
A185: MT | B185: 2023 | C185: 4250 | D185: 56 del 06/04/2023 | E185: 97621236BE | F185: storage CED | G185: 2023-09-01 | H185: 2026-08-31 | I185: 214560 | J185: 4291.2 | K185: 3432.96 | L185: 858.24 | O185: Coll. Inc. Pred. Doc | P185: =+K185*Q185 -> 223.14 | Q185: 0.065 | R185: =ROUND(P185,2) -> 223.14
A186: MT | B186: 2023 | C186: 4250 | D186: 56 del 06/04/2023 | E186: 97621236BE | F186: storage CED | G186: 2023-09-01 | H186: 2026-08-31 | I186: 214560 | J186: 4291.2 | K186: 3432.96 | L186: 858.24 | O186: Coll. Inc. Pred. Doc | P186: =+K186*Q186 -> 120.15 | Q186: 0.035 | R186: 120.15
A187: MT | B187: 2023 | C187: 4250 | D187: 56 del 06/04/2023 | E187: 97621236BE | F187: storage CED | G187: 2023-09-01 | H187: 2026-08-31 | I187: 214560 | J187: 4291.2 | K187: 3432.96 | L187: 858.24 | O187: RUP Affidamento | P187: =+K187*Q187 -> 343.3 | Q187: 0.1 | R187: 343.3
A188: MT | B188: 2023 | C188: 4250 | D188: 56 del 06/04/2023 | E188: 97621236BE | F188: storage CED | G188: 2023-09-01 | H188: 2026-08-31 | I188: 214560 | J188: 4291.2 | K188: 3432.96 | L188: 858.24 | O188: Coll RUP Aff. | P188: =+K188*Q188 -> 205.98 | Q188: 0.06 | R188: 205.98
A189: CQ | B189: 2022 | C189: 1295 | D189: 10 del 20/01/2022 | E189: 906878454D | F189: Servizio di pulizia presso le sedi del CDS (solo esecuzione) | G189: 2022-07-01 | H189: 2023-03-31 | I189: 214900 | J189: 4298 | K189: 3438.4 | L189: 859.6 | M189: 773.64 | N189: =+P189+P190+P191+P192+P193+P194+P195+P196 -> 773.64 | O189: RUP esecuzione | P189: =+(K189*Q189)/5*3 -> 361.03 | Q189: 0.175 | R189: =ROUND(P189,2) -> 361.03 | V189: 2664.76 | W189: 773.64 | X189: 0
A190: CQ | B190: 2022 | C190: 1295 | D190: 10 del 20/01/2022 | E190: 906878454D | F190: Servizio di pulizia presso le sedi del CDS (solo esecuzione) | G190: 2022-07-01 | H190: 2023-03-31 | I190: 214900 | J190: =+I190*0.02 -> 4298 | K190: =+J190*0.8 -> 3438.4 | L190: =+J190*0.2 -> 859.6 | O190: Coll. RUP esecuzione | P190: =+(K190*Q190)/5*3 -> 30.95 | Q190: 0.015 | R190: =ROUND(P190,2) -> 30.95
A191: CQ | B191: 2022 | C191: 1295 | D191: 10 del 20/01/2022 | E191: 906878454D | F191: Servizio di pulizia presso le sedi del CDS (solo esecuzione) | G191: 2022-07-01 | H191: 2023-03-31 | I191: 214900 | J191: 4298 | K191: 3438.4 | L191: 859.6 | O191: Coll. RUP esecuzione | P191: =+(K191*Q191)/5*3 -> 30.95 | Q191: 0.015 | R191: 30.95
A192: CQ | B192: 2022 | C192: 1295 | D192: 10 del 20/01/2022 | E192: 906878454D | F192: Servizio di pulizia presso le sedi del CDS (solo esecuzione) | G192: 2022-07-01 | H192: 2023-03-31 | I192: 214900 | J192: 4298 | K192: 3438.4 | L192: 859.6 | O192: DEC | P192: =+(K192*Q192)/5*3 -> 206.3 | Q192: 0.1 | R192: 206.3
A193: CQ | B193: 2022 | C193: 1295 | D193: 10 del 20/01/2022 | E193: 906878454D | F193: Servizio di pulizia presso le sedi del CDS (solo esecuzione) | G193: 2022-07-01 | H193: 2023-03-31 | I193: 214900 | J193: 4298 | K193: 3438.4 | L193: 859.6 | O193: Coll. DEC | P193: =+(K193*Q193)/5*3 -> 20.63 | Q193: 0.01 | R193: 20.63
A194: CQ | B194: 2022 | C194: 1295 | D194: 10 del 20/01/2022 | E194: 906878454D | F194: Servizio di pulizia presso le sedi del CDS (solo esecuzione) | G194: 2022-07-01 | H194: 2023-03-31 | I194: 214900 | J194: 4298 | K194: 3438.4 | L194: 859.6 | O194: Coll. DEC | P194: =+(K194*Q194)/5*3 -> 20.63 | Q194: 0.01 | R194: 20.63
A195: CQ | B195: 2022 | C195: 1295 | D195: 10 del 20/01/2022 | E195: 906878454D | F195: Servizio di pulizia presso le sedi del CDS (solo esecuzione) | G195: 2022-07-01 | H195: 2023-03-31 | I195: 214900 | J195: 4298 | K195: 3438.4 | L195: 859.6 | O195: Inc. Ver. Conf | P195: 72.2 | Q195: 0.035 | R195: 72.2
A196: CQ | B196: 2022 | C196: 1295 | D196: 10 del 20/01/2022 | E196: 906878454D | F196: Servizio di pulizia presso le sedi del CDS (solo esecuzione) | G196: 2022-07-01 | H196: 2023-03-31 | I196: 214900 | J196: 4298 | K196: 3438.4 | L196: 859.6 | O196: Coll. Inc Ver. Conf. | P196: =+(K196*Q196)/5*3 -> 30.95 | Q196: 0.015 | R196: 30.95
A197: CQ | B197: 2022 | C197: 3310 | D197: 14 del 31/10/2022 | E197: 90857527bc | F197: Servizio di facchinaggio, trasloco e trasporto per le sedi del Consiglio di Stato” (solo esecuzione) | G197: 2022-07-16 | H197: 2024-01-15 | I197: 214900 | J197: =+I197*0.02 -> 4298 | K197: =+J197*0.8 -> 3438.4 | L197: =+J197*0.2 -> 859.6 | M197: 1002.86 | N197: =SUM(P197:P204) -> 1002.86 | O197: RUP esecuzione | P197: 468 | Q197: 0.175 | V197: 2435.54 | X197: 0
A198: CQ | B198: 2022 | C198: 3310 | D198: 14 del 31/10/2022 | E198: 90857527bc | F198: Servizio di facchinaggio, trasloco e trasporto per le sedi del Consiglio di Stato” (solo esecuzione) | G198: 2022-07-16 | H198: 2024-01-15 | I198: 214900 | J198: =+I198*0.02 -> 4298 | K198: =+J198*0.8 -> 3438.4 | L198: =+J198*0.2 -> 859.6 | O198: Coll. RUP esecuzione | P198: 40.12 | Q198: 0.015
A199: CQ | B199: 2022 | C199: 3310 | D199: 14 del 31/10/2022 | E199: 90857527bc | F199: Servizio di facchinaggio, trasloco e trasporto per le sedi del Consiglio di Stato” (solo esecuzione) | G199: 2022-07-16 | H199: 2024-01-15 | I199: 214900 | J199: 4298 | K199: 3438.4 | L199: 859.6 | O199: Coll. RUP esecuzione | P199: 40.12 | Q199: 0.015
A200: CQ | B200: 2022 | C200: 3310 | D200: 14 del 31/10/2022 | E200: 90857527bc | F200: Servizio di facchinaggio, trasloco e trasporto per le sedi del Consiglio di Stato” (solo esecuzione) | G200: 2022-07-16 | H200: 2024-01-15 | I200: 214900 | J200: =+I200*0.02 -> 4298 | K200: =+J200*0.8 -> 3438.4 | L200: =+J200*0.2 -> 859.6 | O200: DEC | P200: 267.42 | Q200: 0.1
... 444 more rows
